bitfinex/quotes_ETHUSD_20250319
["timestamp","ask_amount","ask_price","bid_price","bid_amount"]
[1742401334881,16.43308577,2045.7,2045.3,4.88924]
[1742401335048,5.8365,2045.8,2045.4,4.88881]
[1742401335222,5.8365,2045.8,2045.5,4.88877]
[1742401335555,5.081,2045.8,2045.5,4.88877]
[1742401335739,9.9691,2045.8,2045.4,4.88896]
[1742401335922,9.9691,2045.8,2045.4,4.88884]
[1742401336124,9.9691,2045.8,2045.2,3.0]
[1742401336322,0.824,2045.6,2045.3,4.88907]
[1742401336533,0.824,2045.6,2045.3,9.7782]
[1742401336736,0.824,2045.6,2045.3,4.88911]
[1742401337056,0.824,2045.6,2045.3,4.88909]
[1742401337222,0.824,2045.6,2045.4,4.88892]
[1742401337423,5.71208,2045.8,2045.4,4.88888]
[1742401337618,5.904,2045.8,2045.4,4.88888]
[1742401337823,10.7921,2045.8,2045.4,4.88888]
[1742401338053,4.88835,2045.7,2045.3,4.88918]
[1742401338257,4.88862,2045.6,2045.2,4.88941]
[1742401338753,0.824,2045.4,2044.9,5.6665]
[1742401338932,5.7131,2045.4,2045.0,4.88984]
[1742401339118,5.71255,2045.6,2045.2,4.8894]
[1742401339525,15.27604181,2045.8,2045.3,4.88905]
[1742401339759,5.904,2045.8,2045.4,4.88901]
[1742401339927,0.824,2045.8,2045.5,4.88876]
[1742401340123,5.71208,2045.8,2045.4,4.8889]
[1742401340328,9.96788,2045.9,2045.6,4.88845]
[1742401340329,5.08,2045.9,2045.6,4.88845]
[1742401340565,9.96784,2045.9,2045.6,4.88845]
[1742401340729,5.08,2045.9,2045.6,9.77685]
[1742401340931,5.08,2045.9,2045.6,4.8884]
[1742401341667,5.08,2045.9,2045.4,4.8889]
[1742401341863,9.96796,2045.9,2045.5,4.88868]
[1742401342265,4.88796,2045.9,2045.6,4.88853]
[1742401342628,10.19556181,2046.0,2045.6,4.88853]
[1742401342829,4.88785,2045.9,2045.6,4.88853]
[1742401343759,15.08332181,2046.0,2045.6,4.88841]
[1742401344067,5.71159,2046.0,2045.6,9.77682]
[1742401344271,0.824,2046.0,2045.7,4.88818]
[1742401344467,0.824,2046.0,2045.8,4.88785]
[1742401344665,0.824,2046.0,2045.7,4.88818]
[1742401344956,4.88791,2045.9,2045.6,4.88845]
[1742401345145,4.88791,2045.9,2045.5,4.88873]
[1742401345333,4.88791,2045.9,2045.5,9.77741]
[1742401345528,4.88791,2045.9,2045.6,4.88853]
[1742401345743,4.88791,2045.9,2045.5,4.88868]
[1742401345744,4.88791,2045.9,2045.5,4.88865]
[1742401345944,4.88806,2045.8,2045.4,9.39967]
[1742401346263,5.70816,2045.6,2045.4,4.51068]
[1742401346726,0.8196,2045.6,2045.4,4.51068]
[1742401347328,4.88841,2045.7,2045.4,4.51068]
[1742401347838,4.88858,2045.6,2045.4,4.51068]
[1742401348455,9.96641,2045.7,2045.4,4.51068]
[1742401348661,14.85488,2045.7,2045.4,4.51068]
[1742401348848,4.88862,2045.6,2045.4,4.51068]
[1742401349159,16.12699776,2045.7,2045.4,4.51068]
[1742401349331,14.01493226,2045.7,2045.4,4.51068]
[1742401349756,18.90341226,2045.7,2045.4,4.51068]
[1742401349964,15.61652,2045.8,2045.4,4.51068]
[1742401350130,15.61652,2045.8,2045.4,9.39962]
[1742401350649,8.93696226,2045.7,2045.4,9.39962]
[1742401350851,8.93696226,2045.7,2045.4,4.51068]
[1742401351361,4.04863226,2045.7,2045.4,9.39951]
[1742401351667,10.72828,2045.8,2045.5,4.88875]
[1742401351825,10.72828,2045.8,2045.3,5.86950015]
[1742401352030,4.88855,2045.6,2045.3,5.86950015]
[1742401352231,4.04863226,2045.5,2045.1,0.7601]
[1742401352425,5.077,2045.4,2044.9,0.8135]
[1742401352654,5.077,2045.4,2045.2,4.88933]
[1742401352849,5.077,2045.4,2045.2,5.70283]
[1742401353057,9.96523,2045.8,2045.4,4.88882]
[1742401353231,9.96523,2045.8,2045.4,4.88885]
[1742401353430,4.04863226,2045.7,2045.4,4.88885]
[1742401354570,5.077,2045.8,2045.3,4.88925]
[1742401354754,9.72253226,2046.1,2045.7,4.8883]
[1742401354955,5.077,2046.0,2045.7,9.77641]
[1742401355154,5.077,2046.0,2045.8,4.88798]
[1742401355357,5.077,2046.0,2045.7,4.88811]
[1742401355658,28.57354,2046.3,2045.9,4.88771]
[1742401355852,4.88711,2046.2,2045.9,4.88771]
[1742401356056,4.88711,2046.2,2045.9,4.88769]
[1742401356057,5.077,2046.2,2045.9,4.88769]
[1742401356268,5.077,2046.2,2046.0,4.88739]
[1742401356467,16.91,2046.3,2046.1,4.88734]
[1742401356665,0.7865,2046.7,2046.1,0.566844]
[1742401356866,4.04863226,2046.5,2046.1,4.88722]
[1742401357172,8.93511226,2046.5,2046.1,4.88717]
[1742401357548,4.04863226,2046.5,2046.2,4.88705]
[1742401357749,4.04863226,2046.5,2046.1,4.88727]
[1742401357971,4.04863226,2046.5,2046.2,4.8871]
[1742401358582,8.93511226,2046.5,2046.1,4.88724]
[1742401358885,8.93511226,2046.5,2046.1,4.88717]
[1742401359048,4.04863226,2046.5,2046.2,4.88709]
[1742401359251,4.04863226,2046.5,2046.2,9.77394]
[1742401359853,4.04863226,2046.5,2046.2,4.88694]
[1742401360290,9.72106226,2046.7,2046.3,9.77355]
[1742401360658,9.72113226,2046.7,2046.3,4.88686]
[1742401361094,9.72113226,2046.7,2046.2,4.88708]
[1742401361393,5.67418,2046.6,2046.2,5.67948]
[1742401361608,4.04863226,2046.4,2046.1,4.51068]
[1742401361810,8.93530226,2046.4,2046.1,4.51068]
[1742401361984,8.93530226,2046.4,2046.1,9.39801]
[1742401362293,4.04863226,2046.4,2046.1,4.51068]
[1742401362468,8.93537226,2046.4,2046.1,4.51068]
[1742401362790,4.88696,2046.3,2046.1,4.51068]
[1742401362990,8.93533226,2046.4,2046.1,4.51068]
[1742401363190,4.88689,2046.3,2046.1,4.51068]
[1742401363559,13.82217226,2046.4,2046.1,4.51068]
[1742401363800,8.93533226,2046.4,2046.1,4.51068]
[1742401364170,4.04863226,2046.4,2046.2,4.88702]
[1742401364856,0.7878,2046.6,2046.1,4.51068]
[1742401365056,4.83643226,2046.6,2046.4,4.88653]
[1742401365293,4.04863226,2046.6,2046.5,4.88639]
[1742401365857,4.04863226,2046.6,2046.4,9.77303]
[1742401366293,4.04863226,2046.6,2046.5,4.88639]
[1742401366500,5.074,2046.9,2046.6,4.88605]
[1742401366657,4.04863226,2046.8,2046.5,4.88639]
[1742401366857,4.04863226,2046.6,2046.5,4.88639]
[1742401367269,5.074,2046.9,2046.5,4.88625]
[1742401367468,4.04863226,2046.8,2046.5,4.88625]
[1742401367670,4.04863226,2046.8,2046.2,4.88689]
[1742401367890,4.04863226,2046.8,2046.5,4.88638]
[1742401368076,4.04863226,2046.8,2046.5,4.88629]
[1742401368277,4.04863226,2046.8,2046.6,4.88613]
[1742401369293,4.04863226,2046.8,2046.5,4.88634]
[1742401369482,4.04863226,2046.6,2046.4,4.88659]
[1742401369686,4.04863226,2046.6,2046.5,4.88639]
[1742401370170,4.04863226,2046.6,2046.4,10.81301289]
[1742401370369,4.04863226,2046.6,2046.4,5.92649289]
[1742401370593,4.04863226,2046.6,2046.4,4.88652]
[1742401371278,4.04863226,2046.6,2046.4,9.77305]
[1742401371482,4.04863226,2046.6,2046.4,4.88652]
[1742401372106,4.04863226,2046.7,2046.5,4.88635]
[1742401372496,4.04863226,2046.7,2046.4,4.88652]
[1742401372655,4.04863226,2046.5,2046.3,4.88686]
[1742401372997,4.04863226,2046.5,2046.3,9.77355]
[1742401373201,4.04863226,2046.5,2046.4,4.88663]
[1742401373699,4.04863226,2046.7,2046.4,9.7729]
[1742401374200,4.04863226,2046.7,2046.5,4.88636]
[1742401374499,4.04863226,2046.7,2046.4,9.77303]
[1742401375076,4.04863226,2046.7,2046.4,4.88647]
[1742401375276,4.04863226,2046.7,2046.4,4.88646]
[1742401375485,5.9018,2046.9,2046.3,0.96777352]
[1742401375659,4.04863226,2046.8,2046.4,0.7975]
[1742401375864,4.04863226,2046.8,2046.5,9.77251]
[1742401376173,4.04863226,2046.8,2046.6,4.88613]
[1742401376381,4.04863226,2046.8,2046.7,4.88591]
[1742401377767,4.04863226,2046.8,2046.6,4.88608]
[1742401378264,4.04863226,2046.8,2046.6,4.88601]
[1742401378467,4.04863226,2046.8,2046.7,4.88591]
[1742401378658,4.04863226,2046.8,2046.6,9.77203]
[1742401378862,4.04863226,2046.8,2046.7,4.88591]
[1742401380366,16.902,2047.0,2046.8,4.88546]
[1742401380911,4.04863226,2047.1,2047.0,4.88519]
[1742401381263,4.04863226,2047.2,2046.7,6.661682]
[1742401381517,4.04863226,2047.2,2047.1,4.88495]
[1742401381994,5.70681,2047.5,2047.2,4.88463]
[1742401381995,4.04863226,2047.4,2047.2,4.88463]
[1742401382199,16.893,2047.6,2047.1,0.7904]
[1742401382389,4.04863226,2047.4,2047.1,1.357961]
[1742401382694,16.893,2047.6,2046.8,4.51068]
[1742401382695,0.7741,2047.3,2046.8,4.51068]
[1742401382895,4.04863226,2046.9,2046.8,4.51068]
[1742401383095,0.7738,2046.8,2046.5,4.8863]
[1742401383298,0.7738,2046.8,2046.5,4.88622]
[1742401383498,4.04863226,2046.9,2046.6,9.77202]
[1742401383693,4.04863226,2046.9,2046.6,9.77205]
[1742401383870,4.04863226,2046.9,2046.6,4.88598]
[1742401384706,4.04863226,2046.9,2046.7,4.88575]
[1742401385074,4.04863226,2046.9,2046.6,9.77208]
[1742401385670,0.7738,2047.0,2046.8,4.88564]
[1742401385870,4.04863226,2046.9,2046.6,4.88595]
[1742401386070,4.04863226,2046.9,2046.6,9.77196]
[1742401386395,4.04863226,2046.9,2046.6,4.88606]
[1742401386799,4.04863226,2046.9,2046.6,4.88598]
[1742401387108,4.04863226,2046.7,2046.5,4.88638]
[1742401387684,0.8176,2046.6,2046.3,4.88673]
[1742401387884,4.04863226,2046.5,2046.3,4.88673]
[1742401388268,0.8176,2046.6,2046.3,4.8867]
[1742401388580,0.8176,2046.6,2046.0,10.17144]
[1742401388581,0.8089,2046.8,2046.6,4.88614]
[1742401388779,0.8089,2047.0,2046.7,4.88575]
[1742401388975,22.882,2047.1,2046.6,0.7916]
[1742401388976,22.882,2047.1,2046.8,4.88556]
[1742401389178,4.80643226,2047.2,2046.8,4.88554]
[1742401389381,0.7578,2047.2,2046.6,5.67769]
[1742401389585,4.80643226,2047.2,2046.9,9.77061]
[1742401389796,4.04863226,2047.0,2046.8,4.88567]
[1742401390183,4.04863226,2047.0,2046.8,4.88551]
[1742401390396,0.7578,2047.5,2047.2,4.88467]
[1742401390605,4.04863226,2047.4,2047.2,4.88467]
[1742401390978,5.8268,2047.5,2047.2,10.67153686]
[1742401390979,0.7578,2047.5,2047.2,10.67153686]
[1742401391220,4.04863226,2047.6,2047.2,5.78686686]
[1742401391725,4.04863226,2047.6,2047.2,4.88462]
[1742401391915,4.04863226,2047.4,2047.2,4.88462]
[1742401392226,16.892,2047.7,2047.3,5.67618]
[1742401392428,20.94063226,2047.7,2047.3,5.67605]
[1742401392632,20.94063226,2047.7,2047.3,0.7917]
[1742401392792,20.94063226,2047.7,2047.3,5.67606]
[1742401393111,20.94063226,2047.7,2047.3,10.56036]
[1742401393312,16.892,2047.7,2047.4,4.88406]
[1742401393489,16.892,2047.7,2047.6,4.88376]
[1742401393684,0.8193,2047.9,2047.5,4.8839]
[1742401394540,0.8193,2047.9,2047.4,4.88416]
[1742401394702,5.70235,2047.9,2047.4,4.8841]
[1742401394896,0.8193,2047.9,2047.4,5.74914786]
[1742401395124,0.8193,2047.9,2047.5,4.88399]
[1742401395734,5.70235,2047.9,2047.4,5.74914786]
[1742401395896,0.8193,2047.9,2047.5,4.88384]
[1742401396296,5.7024,2047.9,2047.4,5.74920786]
[1742401396534,8.93195226,2047.8,2047.5,1.056036]
[1742401396832,4.04863226,2047.6,2047.3,4.51068]
[1742401397003,4.82883226,2047.6,2047.3,4.51068]
[1742401397331,0.7802,2047.9,2047.4,4.88424]
[1742401397620,4.88337,2047.8,2047.3,14.27944]
[1742401397924,9.71194226,2047.9,2047.3,9.39499]
[1742401398233,0.7802,2047.9,2047.3,5.93178223]
[1742401398401,4.82883226,2047.9,2047.5,4.88389]
[1742401398605,9.71188226,2047.9,2047.4,5.69529]
[1742401399350,0.7802,2047.9,2047.4,5.69529]
[1742401399546,4.04863226,2047.9,2047.6,4.88376]
[1742401399958,4.04863226,2047.9,2047.4,0.8112]
[1742401400113,4.04863226,2047.9,2047.6,9.76725]
[1742401400306,9.71158226,2048.1,2047.6,9.76723]
[1742401400544,9.71158226,2048.1,2047.6,4.88357]
[1742401400841,9.71158226,2048.1,2047.6,4.88353]
[1742401401147,4.04863226,2047.9,2047.5,5.38396163]
[1742401401444,4.04863226,2047.9,2047.5,10.26778163]
[1742401401752,4.04863226,2047.9,2047.5,5.38380163]
[1742401402046,4.04863226,2047.9,2047.5,10.26760163]
[1742401402237,4.04863226,2047.9,2047.6,4.88376]
[1742401402436,4.04863226,2047.9,2047.6,10.87525416]
[1742401402611,4.82883226,2048.1,2047.7,4.88345]
[1742401402812,9.71141226,2048.1,2047.7,4.88345]
[1742401403036,0.7802,2048.1,2047.8,4.88307]
[1742401403239,26.59704226,2048.3,2047.8,5.66617]
[1742401403756,4.04863226,2048.2,2047.8,5.66617]
[1742401403942,4.04863226,2048.2,2047.8,6.4793797]
[1742401404424,8.93104226,2048.2,2047.7,4.8835]
[1742401404724,8.93104226,2048.2,2047.7,9.76691]
[1742401404972,8.93104226,2048.2,2047.7,4.88341]
[1742401405152,8.93104226,2048.2,2047.7,9.76678]
[1742401405451,16.89,2048.3,2048.1,4.88244]
[1742401405644,4.80183226,2048.5,2048.1,4.88244]
[1742401405840,0.7532,2048.5,2048.1,9.76485]
[1742401406049,4.80183226,2048.5,2048.1,9.76485]
[1742401406262,0.1206016,2048.6,2048.3,4.88197]
[1742401406440,9.05070386,2048.6,2048.1,5.942125]
[1742401406876,4.16923386,2048.6,2048.1,1.059685]
[1742401407063,13.93232386,2048.6,2048.1,5.942235]
[1742401407236,9.05074386,2048.6,2048.1,10.824695]
[1742401407437,13.93231386,2048.6,2048.2,0.86139886]
[1742401407677,9.05074386,2048.6,2048.2,0.86139886]
[1742401407877,4.16923386,2048.6,2048.2,5.74360886]
[1742401408060,9.05062386,2048.6,2048.2,5.74359886]
[1742401409468,0.1206016,2048.6,2048.3,4.88199]
[1742401409655,0.1206016,2048.6,2048.4,5.941515]
[1742401410466,0.1206016,2048.6,2048.4,1.059685]
[1742401410840,4.16923386,2048.6,2048.2,4.88231]
[1742401411071,4.16923386,2048.6,2048.2,4.88223]
[1742401411266,4.16923386,2048.6,2048.3,4.88204]
[1742401411543,0.1206016,2048.6,2048.4,4.88177]
[1742401412079,0.1206016,2048.6,2048.4,4.88168]
[1742401412285,0.1206016,2048.6,2048.5,5.369788]
[1742401414083,0.1206016,2048.6,2048.5,6.196688]
[1742401415147,0.1206016,2048.6,2048.5,10.24532026]
[1742401415668,0.1206016,2048.6,2048.5,18.30600026]
[1742401416354,0.1206016,2048.6,2048.5,19.29397339]
[1742401416757,1.6e-06,2048.6,2048.5,19.29397339]
[1742401417288,1.6e-06,2048.6,2048.5,23.80497339]
[1742401418358,1.6e-06,2048.6,2048.5,14.69534113]
[1742401418563,1.6e-06,2048.6,2048.5,19.75634113]
[1742401419046,1.6e-06,2048.6,2048.5,20.12103526]
[1742401421378,1.6e-06,2048.6,2048.5,15.06003526]
[1742401421584,1.6e-06,2048.6,2048.5,20.12003526]
[1742401424265,1.6e-06,2048.6,2048.5,20.67003526]
[1742401425008,1.6e-06,2048.6,2048.5,20.12003526]
[1742401425898,1.6e-06,2048.6,2048.5,20.11903526]
[1742401428297,0.7891016,2048.6,2048.5,0.98797313]
[1742401428495,0.7891016,2048.6,2048.3,4.88198]
[1742401428656,0.7891016,2048.6,2048.2,4.88213]
[1742401428657,4.04863226,2048.4,2048.1,4.88254]
[1742401428874,4.04863226,2048.2,2047.9,9.94105]
[1742401429194,4.04863226,2048.2,2048.0,4.88269]
[1742401430606,4.04863226,2048.2,2047.9,9.9409]
[1742401430776,8.93104226,2048.2,2047.9,9.9409]
[1742401430978,4.04863226,2048.2,2047.9,9.9409]
[1742401431177,8.93097226,2048.2,2047.9,9.9409]
[1742401431478,4.04863226,2048.0,2047.7,4.88349]
[1742401431699,4.04863226,2048.0,2047.7,4.88334]
[1742401431899,4.04863226,2048.2,2047.9,4.88305]
[1742401432084,8.93097226,2048.2,2047.9,4.88305]
[1742401432290,8.93097226,2048.2,2047.8,4.88325]
[1742401432496,5.64914,2048.3,2048.0,4.8827]
[1742401432497,0.7669,2048.3,2048.0,4.8827]
[1742401432684,0.7669,2048.3,2048.2,4.88233]
[1742401432888,0.7573,2048.5,2048.0,0.8072]
[1742401433105,0.7573,2048.5,2048.3,4.88198]
[1742401434074,1.6e-06,2048.6,2048.3,4.88195]
[1742401434275,1.6e-06,2048.6,2048.3,4.88203]
[1742401434580,1.6e-06,2048.6,2048.2,4.88231]
[1742401434581,1.6e-06,2048.6,2048.1,4.51068]
[1742401434775,1.6e-06,2048.6,2048.3,4.882]
[1742401434974,1.6e-06,2048.6,2048.4,4.88175]
[1742401435171,1.6e-06,2048.6,2048.2,5.413888]
[1742401435510,1.6e-06,2048.6,2048.4,4.88174]
[1742401435688,1.6e-06,2048.6,2048.3,4.882]
[1742401436282,1.6e-06,2048.6,2048.3,4.88188]
[1742401436488,1.6e-06,2048.6,2048.4,4.88179]
[1742401436804,1.6e-06,2048.6,2048.5,4.88162]
[1742401437008,1.6e-06,2048.6,2048.5,9.3923]
[1742401438816,1.6e-06,2048.6,2048.5,4.51068]
[1742401439191,0.8093016,2048.6,2048.5,4.51068]
[1742401440317,4.85793386,2048.6,2048.5,4.51068]
[1742401440518,4.85793386,2048.6,2048.0,9.39336]
[1742401440519,4.88193,2048.4,2048.0,9.39336]
[1742401440823,4.04863226,2048.4,2048.1,4.88256]
[1742401441006,8.93049226,2048.4,2048.0,9.39336]
[1742401441315,4.04863226,2048.2,2048.0,9.39336]
[1742401441515,9.69301226,2048.2,2048.0,4.51068]
[1742401441717,4.88267,2048.1,2047.7,9.39417]
[1742401441888,8.93146226,2048.0,2047.7,4.51068]
[1742401442234,4.88307,2047.9,2047.7,4.51068]
[1742401442384,9.71251226,2047.8,2047.7,4.51068]
[1742401442585,9.71251226,2047.8,2047.3,4.88447]
[1742401442586,9.71261226,2047.8,2047.4,4.88412]
[1742401443290,4.88363,2047.7,2047.3,9.39508]
[1742401443493,4.04863226,2047.6,2047.3,4.51068]
[1742401443683,4.88408,2047.5,2047.1,4.88495]
[1742401443896,13.81654226,2047.6,2047.2,4.88461]
[1742401444110,13.81643226,2047.6,2047.2,4.88461]
[1742401444394,4.86013226,2047.4,2047.0,4.51068]
[1742401444610,4.88459,2047.3,2047.0,4.51068]
[1742401444795,9.74439226,2047.4,2047.1,4.88484]
[1742401444796,9.74441226,2047.4,2047.1,4.88484]
[1742401444990,9.74441226,2047.4,2047.0,9.3958]
[1742401445313,4.04863226,2047.2,2046.8,9.39627]
[1742401445492,4.88504,2047.1,2046.8,4.51068]
[1742401445694,9.77018,2047.1,2046.8,4.51068]
[1742401445936,8.93384226,2047.0,2046.6,9.39682]
[1742401446103,8.93384226,2047.0,2046.7,4.88588]
[1742401446104,9.74914226,2047.0,2046.7,4.88588]
[1742401446303,4.88552,2046.9,2046.6,4.51068]
[1742401446625,4.04863226,2046.8,2046.5,4.88631]
[1742401446828,8.93442226,2046.8,2046.4,9.9436]
[1742401447191,4.04863226,2046.8,2046.4,9.9436]
[1742401447397,4.04863226,2046.6,2046.3,4.88673]
[1742401447593,4.88642,2046.5,2046.1,9.39787]
[1742401447835,4.04863226,2046.4,2046.1,4.88719]
[1742401447994,4.04863226,2046.4,2046.1,9.77434]
[1742401448191,4.04863226,2046.4,2046.1,9.77436]
[1742401448432,4.04863226,2046.4,2046.1,4.88715]
[1742401449210,4.88649,2046.5,2046.1,4.88715]
[1742401449604,9.77305,2046.5,2046.1,4.88715]
[1742401449838,4.88669,2046.4,2046.0,4.88744]
[1742401450055,10.14013581,2046.6,2046.1,4.88713]
[1742401450339,4.88648,2046.5,2046.1,4.88728]
[1742401450542,4.48052581,2046.4,2045.9,9.39839]
[1742401450837,4.88691,2046.3,2045.9,9.39839]
[1742401451132,4.88691,2046.3,2045.9,14.28601]
[1742401451347,4.88691,2046.3,2046.0,4.88757]
[1742401451517,4.88691,2046.3,2045.9,9.39845]
[1742401451717,9.36822581,2046.0,2045.6,0.3760908]
[1742401451912,4.48052581,2046.0,2045.6,4.88842]
[1742401452134,4.48052581,2046.0,2045.5,9.39945]
[1742401452135,4.48052581,2046.0,2045.5,9.39941]
[1742401452348,5.8563,2046.2,2045.0,4.51068]
[1742401452349,4.48052581,2045.6,2045.0,4.51068]
[1742401452553,9.36864581,2045.8,2045.4,4.88896]
[1742401452847,4.48052581,2045.8,2045.5,4.88864]
[1742401453033,0.7694,2045.9,2045.6,4.88836]
[1742401453233,0.7694,2045.9,2045.4,4.88897]
[1742401453434,0.7694,2045.9,2045.3,4.51068]
[1742401453638,0.7694,2045.9,2045.5,4.88868]
[1742401454159,5.65741,2045.9,2045.4,4.88901]
[1742401454366,5.65741,2045.9,2045.5,4.88876]
[1742401454525,4.88812,2045.8,2045.3,14.28895]
[1742401454726,9.36864581,2045.8,2045.3,14.28895]
[1742401454928,4.48052581,2045.8,2045.5,4.88868]
[1742401455129,0.7694,2045.9,2045.6,4.88847]
[1742401455365,0.7694,2045.9,2045.3,14.4589]
[1742401455844,100.7694,2045.9,2045.6,4.88839]
[1742401456158,100.7694,2045.9,2045.7,4.88818]
[1742401456330,100.7694,2045.9,2045.6,4.88849]
[1742401456869,105.65725,2045.9,2045.5,4.88866]
[1742401457174,105.65725,2045.9,2045.4,4.88897]
[1742401457337,105.65725,2045.9,2045.5,4.88867]
[1742401458164,4.88818,2045.8,2045.4,4.88898]
[1742401458339,4.88818,2045.8,2045.3,14.45892]
[1742401458537,4.88818,2045.8,2045.4,4.88891]
[1742401458859,4.88818,2045.8,2045.5,4.88877]
[1742401459067,105.65728,2045.9,2045.6,4.88851]
[1742401459246,100.7694,2045.9,2045.6,4.8883]
[1742401459448,100.7694,2045.9,2045.7,4.88816]
[1742401460096,100.7694,2045.9,2045.7,4.8882]
[1742401460366,9.42982471,2045.8,2045.4,4.88883]
[1742401460554,4.88851,2045.7,2045.3,9.39982]
[1742401461351,4.88851,2045.7,2045.3,9.39991]
[1742401462161,4.88851,2045.7,2045.3,9.39977]
[1742401462647,4.88851,2045.7,2045.3,9.39976]
[1742401463146,4.48052581,2045.8,2045.4,4.88891]
[1742401463347,4.48052581,2045.8,2045.4,4.88893]
[1742401463348,4.88806,2045.8,2045.4,4.88893]
[1742401463530,100.7694,2045.9,2045.4,4.88899]
[1742401463731,100.7694,2045.9,2045.6,4.88836]
[1742401464265,100.7694,2045.9,2045.7,4.88815]
[1742401464666,100.0,2045.9,2045.8,4.88806]
[1742401464869,100.0,2045.9,2045.8,5.86568]
[1742401465168,100.0,2045.9,2045.8,10.37636]
[1742401466341,100.0,2045.9,2045.8,9.39874]
[1742401467838,100.0,2045.9,2045.8,12.39874]
[1742401468458,100.0,2045.9,2045.8,13.20414]
[1742401468670,0.7629,2046.7,2046.5,4.8863]
[1742401468972,0.7629,2046.7,2045.9,4.88765]
[1742401468973,0.7629,2046.7,2045.9,4.51068]
[1742401469177,4.48052581,2046.1,2045.6,4.51068]
[1742401469348,5.70241,2045.8,2045.5,4.51068]
[1742401469540,9.77687,2045.7,2045.4,4.51068]
[1742401469873,9.77687,2045.7,2045.1,0.7567]
[1742401469874,4.88864,2045.6,2045.0,4.51068]
[1742401470075,9.36885581,2045.7,2045.0,9.40054]
[1742401470243,4.94967384,2045.6,2045.0,4.51068]
[1742401470439,4.88856,2045.6,2045.0,4.51068]
[1742401470769,5.70239,2045.8,2045.0,9.57068]
[1742401470945,5.70239,2045.8,2045.2,4.88941]
[1742401471148,10.59065,2045.8,2045.2,4.88941]
[1742401471358,4.88837,2045.7,2045.1,4.8895]
[1742401472178,4.88837,2045.7,2045.2,4.88948]
[1742401472377,9.77686,2045.7,2045.1,4.8895]
[1742401472568,4.88859,2045.6,2045.1,4.8895]
[1742401472878,5.70228,2045.8,2045.0,14.46065]
[1742401473064,5.70234,2045.8,2045.2,4.88936]
[1742401473380,4.88834,2045.7,2045.3,0.977907]
[1742401473546,5.70234,2045.8,2045.3,0.977907]
[1742401474080,5.70234,2045.8,2045.2,4.88934]
[1742401474081,4.88831,2045.7,2045.2,4.88934]
[1742401474278,5.70234,2045.8,2045.2,4.88934]
[1742401474575,5.70234,2045.8,2045.1,4.88971]
[1742401474762,10.59061,2045.8,2045.1,4.88971]
[1742401474962,5.70234,2045.8,2045.1,9.40028]
[1742401475168,10.59061,2045.8,2045.1,9.40028]
[1742401475363,5.70234,2045.8,2045.1,14.28983]
[1742401475568,4.8885,2045.7,2045.1,4.51068]
[1742401475874,4.88846,2045.7,2045.1,4.51068]
[1742401476082,4.88846,2045.7,2045.1,9.40028]
[1742401476375,0.8248,2046.0,2045.5,4.88861]
[1742401476574,5.71241,2046.0,2045.6,5.547861]
[1742401476973,4.88797,2045.9,2045.6,5.547861]
[1742401477180,4.88812,2045.8,2045.6,5.547861]
[1742401478871,0.8248,2046.0,2045.6,5.547861]
[1742401479071,4.88731,2046.2,2045.6,11.214711]
[1742401479369,4.88737,2046.1,2045.7,1.1214711]
[1742401479572,4.88737,2046.1,2045.6,5.8374]
[1742401479573,4.88791,2045.9,2045.6,0.7784]
[1742401479755,4.88791,2045.9,2045.5,5.059]
[1742401480083,4.88791,2045.9,2045.4,4.51068]
[1742401480290,0.8085,2045.8,2045.5,5.059]
[1742401480678,5.69669,2045.8,2045.5,5.059]
[1742401481056,5.69669,2045.8,2045.4,4.51068]
[1742401481257,5.69669,2045.8,2045.4,9.56968]
[1742401481668,4.88837,2045.7,2045.4,9.56968]
[1742401481870,4.88857,2045.6,2045.4,9.56968]
[1742401482278,0.8085,2045.8,2045.4,9.56968]
[1742401482279,5.69657,2045.8,2045.4,9.56968]
[1742401482459,5.69657,2045.8,2045.5,0.956968]
[1742401482993,0.8085,2045.8,2045.5,0.956968]
[1742401483289,0.8171,2046.0,2045.6,4.88837]
[1742401483689,4.88711,2046.2,2045.7,9.39882]
[1742401483690,0.8171,2046.2,2045.7,9.39882]
[1742401483993,0.8171,2046.4,2046.0,4.88757]
[1742401484288,5.70378,2046.4,2046.0,5.47479586]
[1742401484658,5.70337,2046.6,2046.0,5.85154586]
[1742401484883,4.88641,2046.5,2046.0,5.85149586]
[1742401485306,10.5897,2046.6,2046.1,4.8873]
[1742401485679,10.5897,2046.6,2046.0,0.96411586]
[1742401485680,9.36704581,2046.5,2046.0,0.96411586]
[1742401485880,4.88667,2046.4,2046.1,0.956968]
[1742401486707,10.58958,2046.6,2046.1,5.844278]
[1742401486914,4.8865,2046.5,2046.1,0.956968]
[1742401487283,4.88664,2046.4,2046.1,0.956968]
[1742401487695,9.77297,2046.5,2046.1,0.956968]
[1742401487895,9.773,2046.5,2046.2,0.5844548]
[1742401488103,0.8171,2046.6,2046.2,0.5844548]
[1742401488424,5.69085,2046.8,2046.4,4.8866]
[1742401488599,5.6908,2046.8,2046.3,5.70472]
[1742401489220,0.8051,2047.0,2046.5,4.88628]
[1742401489417,0.8051,2047.0,2046.5,9.39689]
[1742401489581,5.70809,2047.2,2046.7,4.88582]
[1742401489780,9.76937,2047.3,2046.8,4.88553]
[1742401490006,0.8233,2047.4,2047.0,4.88518]
[1742401490177,5.70764,2047.4,2046.9,9.39609]
[1742401490389,5.70764,2047.4,2047.0,5.057]
[1742401491317,0.8233,2047.4,2047.0,10.92339486]
[1742401491701,5.70757,2047.4,2047.0,6.03839486]
[1742401491915,0.8233,2047.4,2047.0,10.92346486]
[1742401492098,5.7087,2047.6,2047.1,4.88495]
[1742401492309,5.7087,2047.6,2047.2,4.88472]
[1742401492310,0.8249,2047.6,2047.2,4.88472]
[1742401492530,5.70867,2047.6,2047.2,0.939689]
[1742401492891,5.70867,2047.6,2047.2,5.824359]
[1742401493219,5.70867,2047.6,2047.2,5.824319]